[Event "79th Armenian-HL-ch Women 2024"]
[Site "Yerevan"]
[Date "2024.01.12"]
[Round "1.1"]
[White "Grigoryan, Arpine"]
[Black "Avetisyan, Mariam"]
[Result "0-1"]
[ECO "B31"]
[WhiteElo "2025"]
[BlackElo "2043"]
[Annotator "NA RC"]
[PlyCount "102"]
[EventDate "2024.01.11"]
[EventType "tourn"]
[EventCountry "ARM"]
[SourceTitle "playchess.com"]
[Source "ChessBase"]
[SourceQuality "1"]
[TimeControl "40/5400+30:1800+30"]

1. e4 {[%emt 0:00:02]} c5 {[%emt 0:00:15]} 2. Nf3 {[%emt 0:00:32]} Nc6 {[%emt 0:00:06]} 3. Bb5 {[%emt 0:01:42]} g6 {[%emt 0:00:07]} 4. O-O {[%emt 0:00:59]} Bg7 {[%emt 0:00:08]} 5. c3 {[%emt 0:01:56]} e5 {[%emt 0:09:26]} 6. d3 {[%emt 0:04:36]} Qb6 {[%emt 0:14:15]} 7. Na3 {[%emt 0:11:30]} Nge7 {[%emt 0:03:07]} 8. Be3 {[%emt 0:01:32]} O-O {[%emt 0:11:08]} 9. b4 {[%emt 0:05:21]} d6 {[%emt 0:00:05]} 10. Nc4 {[%emt 0:07:24]} Qc7 {[%emt 0:01:33]} 11. bxc5 {[%emt 0:00:15]} d5 {[%emt 0:02:01]} 12. Nd6 {[%emt 0:03:29]} Bg4 {[%emt 0:18:19]} 13. h3 {[%emt 0:04:48]} Bxf3 {[%emt 0:00:16]} 14. Qxf3 {[%emt 0:00:04]} d4 {[%emt 0:00:08]} 15. cxd4 {[%emt 0:08:15]} exd4 {[%emt 0:01:03]} 16. Bf4 {[%emt 0:06:32]} Ne5 {[%emt 0:00:25]} 17. Bxe5 {[%emt 0:00:20]} Bxe5 {[%emt 0:00:05]} 18. Rac1 {[%emt 0:02:04]} Bxd6 {[%emt 0:00:52]} 19. cxd6 {[%emt 0:00:05]} Qxd6 {[%emt 0:00:04]} 20. Qe2 {[%emt 0:03:32]} a6 {[%emt 0:10:29]} 21. Bc4 {[%emt 0:02:05]} b5 {[%emt 0:01:26]} 22. Bb3 {[%emt 0:00:05]} a5 {[%emt 0:03:36]} 23. f4 {[%emt 0:01:55]} a4 {[%emt 0:01:07]} 24. Bd1 {[%emt 0:00:45]} b4 {[%emt 0:03:55]} 25. Rc4 {[%emt 0:03:11]} b3 {[%emt 0:04:10]} 26. axb3 {[%emt 0:07:47]} a3 {[%emt 0:00:03]} 27. Qa2 {[%emt 0:00:46]} Qb6 {[%emt 0:02:43]} 28. f5 {[%emt 0:04:29]} Nc6 {[%emt 0:01:47]} 29. fxg6 {[%emt 0:05:24]} hxg6 {[%emt 0:02:55]} 30. Ra4 {[%emt 0:01:47]} Rxa4 {[%emt 0:04:16]} 31. bxa4 {[%emt 0:00:04]} Qc5 {[%emt 0:01:30]} 32. Bb3 {[%emt 0:01:13]} Ne5 {[%emt 0:00:20]} 33. Ra1 {[%emt 0:02:59]} Rc8 {[%emt 0:01:08]} 34. Bc4 {[%emt 0:03:26]} Nxc4 {[%emt 0:00:50]} 35. Qxc4 {[%emt 0:00:04]} Qf8 {[%emt 0:00:27]} 36. Qxd4 {[%emt 0:01:11]} Rc2 {[%emt 0:00:04]} 37. Qe5 {[%emt 0:04:18]} a2 {[%emt 0:00:47]} 38. Kh2 {[%emt 0:01:42]} Qb4 {[%emt 0:01:38]} 39. Rf1 {[%emt 0:01:08]} Qxa4 {[%emt 0:00:56]} 40. Qd5 {[%emt 0:00:00]} Qe8 {[%emt 0:00:00]} 41. e5 {[%emt 0:06:50]} Qe7 {[%emt 0:10:57]} 42. Ra1 {[%emt 0:08:08]} Qh4 {[%emt 0:02:07]} 43. Qa8+ {[%emt 0:09:41]} Kg7 {[%emt 0:00:32]} 44. Qf3 {[%emt 0:00:21]} Qd4 {[%emt 0:08:13]} 45. Qf6+ {[%emt 0:00:52]} Kg8 {[%emt 0:00:21]} 46. Rf1 {[%emt 0:00:16]} Qd5 {[%emt 0:00:27]} 47. Qg5 {[%emt 0:00:36]} Rb2 {[%emt 0:02:31]} 48. Rc1 {[%emt 0:00:56]} Qe6 {[%emt 0:03:57]} 49. Qd8+ {[%emt 0:00:27]} Kg7 {[%emt 0:00:04]} 50. Qd4 {[%emt 0:00:12]} Rb1 {[%emt 0:00:26]} 51. Rg1 {[%emt 0:00:39]} a1=Q {[%emt 0:00:13]} 0-1

[Event "79th Armenian-HL-ch Women 2024"]
[Site "Yerevan"]
[Date "2024.01.12"]
[Round "1.2"]
[White "Gaboyan, Susanna"]
[Black "Khachatryan, Anna"]
[Result "1/2-1/2"]
[ECO "B21"]
[WhiteElo "2179"]
[BlackElo "2022"]
[Annotator "TA"]
[PlyCount "92"]
[EventDate "2024.01.11"]
[EventType "tourn"]
[EventCountry "ARM"]
[SourceTitle "playchess.com"]
[Source "ChessBase"]
[SourceQuality "1"]
[TimeControl "40/5400+30:1800+30"]

{[%evp 9,92,-25,-25,-26,21,36,21,12,34,24,40,-10,12,13,12,10,25,17,21,-9,-4,-19,-11,-30,-23,-22,-28,-35,-34,-51,-25,-53,-54,-56,-53,-61,-62,-57,-55,-61,-42,-59,-47,-52,-53,-50,-44,-44,-55,-56,-53,-64,-35,-36,-8,-8,-8,-8,-8,-8,0,0,0,-2,0,0,0,0,0,0,0,0,0,-8,-8,-8,0,0,0,0,0,0,0,-4,-2]} 1. e4 {[%emt 0:00:06]} c5 {[%emt 0:00:13]} 2. d4 {[%emt 0:00:05]} cxd4 {[%emt 0:00:11]} 3. Qxd4 {[%emt 0:00:06]} Nc6 {[%emt 0:00:53]} 4. Qe3 {[%emt 0:00:06]} Nf6 {[%emt 0:13:29]} 5. Nc3 {[%emt 0:00:08]} d5 {[%emt 0:04:16]} 6. exd5 {[%emt 0:07:05]} Nb4 {[%emt 0:05:17]} (6... Nxd5 {was preferrable.} 7. Nxd5 Qxd5) 7. Bb5+ $11 {[%emt 0:06:09]} Bd7 {[%emt 0:00:20]} 8. Qe2 {[%emt 0:01:59]} Nfxd5 {[%emt 0:08:03]} 9. Nxd5 {[%emt 0:01:28]} Nxd5 {[%emt 0:00:01]} 10. c3 {[%emt 0:00:37]} (10. Bxd7+ $14 Qxd7 11. Nf3) 10... e6 {[%emt 0:10:09]} 11. Nf3 {[%emt 0:00:27] [#] Ne5 would now be deadly.} Bxb5 {[%emt 0:06:57]} 12. Qxb5+ {[%emt 0:00:10]} Qd7 {[%emt 0:00:03]} 13. Qxd7+ {[%emt 0:05:30]} Kxd7 {[%emt 0:02:16]} 14. Ne5+ {[%emt 0:00:06]} Ke8 {[%emt 0:00:26]} 15. O-O {[%emt 0:00:12]} Bd6 {[%emt 0:07:31]} 16. Nd3 {[%emt 0:06:45]} Rc8 {[%emt 0:01:39]} 17. Bd2 {[%emt 0:14:46]} Ke7 {[%emt 0:01:33]} 18. Rfe1 {[%emt 0:09:12]} Rhd8 {[%emt 0:02:08]} 19. Rad1 {[%emt 0:06:24]} Rd7 {[%emt 0:19:03]} 20. Bg5+ {[%emt 0:07:15]} f6 {[%emt 0:00:56]} 21. Bc1 {[%emt 0:00:36]} b5 {[%emt 0:02:49]} 22. Re4 {[%emt 0:02:42]} Rc4 {[%emt 0:06:07]} 23. Rde1 {[%emt 0:09:31]} Rxe4 {[%emt 0:02:42]} 24. Rxe4 {[%emt 0:00:03]} Nb6 {[%emt 0:02:09][%cal Od6e5]} 25. h3 {[%emt 0:08:58]} Bc7 {[%emt 0:03:12]} 26. Rd4 {[%emt 0:00:07]} Rxd4 {[%emt 0:00:17]} 27. cxd4 $15 {[%emt 0:00:04][%mdl 4096] Endgame. KBN-KBN} Nd5 {[%emt 0:00:45]} 28. Kf1 {[%emt 0:01:16]} Bb6 {[%emt 0:00:29]} 29. Be3 $1 {[%emt 0:01:19]} Kd6 {[%emt 0:00:31]} 30. Ke2 {[%emt 0:00:53]} Ne7 {[%emt 0:00:30]} 31. Nf4 {[%emt 0:02:42]} Nc6 {[%emt 0:00:30]} 32. Nh5 {[%emt 0:02:31] The position is equal.} Bxd4 {[%emt 0:00:32]} 33. Bxd4 {[%emt 0:00:45]} Nxd4+ $11 {[%emt 0:00:00] KN-KN} 34. Kd3 {[%emt 0:00:02]} Nc6 {[%emt 0:00:51]} 35. Kc3 {[%emt 0:00:02] Inhibits Nb4.} a5 {[%emt 0:00:34]} 36. Nxg7 {[%emt 0:00:08]} Ke7 {[%emt 0:00:35]} 37. b3 {[%emt 0:01:45]} Kf7 {[%emt 0:00:25]} 38. Nh5 {[%emt 0:00:07]} e5 $1 {[%emt 0:00:25]} 39. Ng3 {[%emt 0:01:01]} Nb4 {[%emt 0:00:15]} 40. a4 {[%emt 0:00:00]} Nd5+ {[%emt 0:00:00]} 41. Kd2 {[%emt 0:06:35]} bxa4 {[%emt 0:08:30]} 42. bxa4 {[%emt 0:00:08]} Nb6 {[%emt 0:00:06]} 43. Ne4 $1 {[%emt 0:00:09]} Nxa4 {[%emt 0:01:28] Hoping for ...Nb6.} 44. Nd6+ $1 {[%emt 0:00:07]} Ke6 {[%emt 0:00:04]} 45. Nb7 {[%emt 0:00:24]} Kd5 {[%emt 0:00:12]} 46. Nxa5 {[%emt 0:00:54]} Nc5 {[%emt 0:01:18] Weighted Error Value: White=0.05 (flawless) /Black=0.07 (flawless) .  Mistake:       	White=1     	Black=1      Inaccurate:     	White=2     	Black=3      OK:         	White=17    	Black=15     Best:        	---       	Black=3      Strong:       	White=3     	Black=1} 1/2-1/2

[Event "79th Armenian-HL-ch Women 2024"]
[Site "Yerevan"]
[Date "2024.01.12"]
[Round "1.3"]
[White "Stepanyan, Alvard"]
[Black "Harutyunyan, Meline"]
[Result "1-0"]
[ECO "D37"]
[WhiteElo "1514"]
[BlackElo "1536"]
[Annotator "NA RC COMBH"]
[PlyCount "87"]
[EventDate "2024.01.11"]
[EventType "tourn"]
[EventCountry "ARM"]
[SourceTitle "playchess.com"]
[Source "ChessBase"]
[SourceQuality "1"]
[TimeControl "40/5400+30:1800+30"]

1. d4 {[%emt 0:00:19]} d5 {[%emt 0:00:23]} 2. c4 {[%emt 0:00:10]} e6 {[%emt 0:00:08]} 3. Nc3 {[%emt 0:00:06]} Nf6 {[%emt 0:00:23]} 4. Nf3 {[%emt 0:00:11]} Be7 {[%emt 0:01:23]} 5. Bf4 {[%emt 0:00:28]} O-O {[%emt 0:01:32]} 6. e3 {[%emt 0:00:06]} a6 {[%emt 0:14:56]} 7. c5 {[%emt 0:07:05]} Nh5 {[%emt 0:08:33]} 8. Bd3 {[%emt 0:10:14]} Nxf4 {[%emt 0:10:48]} 9. exf4 {[%emt 0:00:07]} Nc6 {[%emt 0:01:25]} 10. a3 {[%emt 0:08:27]} Bf6 {[%emt 0:07:54]} 11. Bc2 {[%emt 0:14:09]} g6 {[%emt 0:06:16]} 12. O-O {[%emt 0:00:26]} Bg7 {[%emt 0:04:07]} 13. g3 {[%emt 0:08:38]} Nb8 {[%emt 0:16:36]} 14. h4 {[%emt 0:12:26]} Nd7 {[%emt 0:08:11]} 15. h5 {[%emt 0:06:35]} b6 {[%emt 0:00:34]} 16. hxg6 {[%emt 0:03:26]} hxg6 {[%emt 0:00:33]} 17. cxb6 {[%emt 0:07:38]} c5 {[%emt 0:04:02]} 18. dxc5 {[%emt 0:18:59]} Nxc5 {[%emt 0:00:02]} 19. Ne2 {[%emt 0:00:00]} Qxb6 {[%emt 0:00:54]} 20. b4 {[%emt 0:00:00]} Nd7 {[%emt 0:09:01]} 21. Rb1 {[%emt 0:00:00]} Bb7 {[%emt 0:01:40]} 22. Ned4 {[%emt 0:00:00]} e5 {[%emt 0:00:13]} 23. Ba4 {[%emt 0:00:00]} exd4 {[%emt 0:00:31]} 24. Bxd7 {[%emt 0:00:00]} Rad8 {[%emt 0:00:26]} 25. Bh3 {[%emt 0:00:54]} Bc8 {[%emt 0:00:33]} 26. Bxc8 {[%emt 0:02:05]} Rxc8 {[%emt 0:00:01]} 27. Rc1 {[%emt 0:00:34]} Rc3 {[%emt 0:01:17]} 28. Ne5 {[%emt 0:00:49]} Bxe5 {[%emt 0:00:28]} 29. fxe5 {[%emt 0:00:01]} Rfc8 {[%emt 0:00:28]} 30. Qd2 {[%emt 0:00:27]} Qc6 {[%emt 0:00:43]} 31. Rcd1 {[%emt 0:00:14]} d3 {[%emt 0:00:21]} 32. Qe3 {[%emt 0:00:39]} Qc4 {[%emt 0:01:03]} 33. e6 {[%emt 0:00:29]} d4 {[%emt 0:00:18]} 34. exf7+ {[%emt 0:00:16]} Kxf7 {[%emt 0:00:07]} 35. Qf4+ {[%emt 0:00:15]} Kg8 {[%emt 0:00:38]} 36. Rfe1 {[%emt 0:00:35]} Rf8 {[%emt 0:01:00]} 37. Qg4 {[%emt 0:00:23]} Kg7 {[%emt 0:00:35]} 38. Re7+ {[%emt 0:00:41]} Rf7 {[%emt 0:00:07]} 39. Rxf7+ {[%emt 0:01:18]} Kxf7 {[%emt 0:00:01]} 40. Qd7+ {[%emt 0:00:00]} Kf6 {[%emt 0:00:00]} 41. Re1 {[%emt 0:04:55]} Qc6 {[%emt 0:09:31]} 42. Qe7+ {[%emt 0:02:22]} Kf5 {[%emt 0:00:32]} 43. Re5+ {[%emt 0:01:11]} Kg4 {[%emt 0:00:46]} 44. Qg5+ {[%emt 0:00:46]} 1-0

[Event "79th Armenian-HL-ch Women 2024"]
[Site "Yerevan"]
[Date "2024.01.12"]
[Round "1.4"]
[White "Gasparyan, Milena"]
[Black "Khachatryan, Mariam"]
[Result "1-0"]
[ECO "B23"]
[WhiteElo "1802"]
[BlackElo "1567"]
[Annotator "NA RC COMBH"]
[PlyCount "99"]
[EventDate "2024.01.11"]
[EventType "tourn"]
[EventCountry "ARM"]
[SourceTitle "playchess.com"]
[Source "ChessBase"]
[SourceQuality "1"]
[TimeControl "40/5400+30:1800+30"]

1. e4 {[%emt 0:00:11]} c5 {[%emt 0:00:08]} 2. Nc3 {[%emt 0:00:07]} Nc6 {[%emt 0:00:13]} 3. Bb5 {[%emt 0:00:10]} Nd4 {[%emt 0:00:20]} 4. Bc4 {[%emt 0:00:08]} e6 {[%emt 0:00:21]} 5. Nge2 {[%emt 0:00:10]} a6 {[%emt 0:02:18]} 6. a4 {[%emt 0:00:25]} Qc7 {[%emt 0:02:47]} 7. d3 {[%emt 0:01:09]} Nf6 {[%emt 0:04:27]} 8. O-O {[%emt 0:08:05]} d6 {[%emt 0:06:44]} 9. Be3 {[%emt 0:07:47]} Nc6 {[%emt 0:08:15]} 10. h3 {[%emt 0:06:55]} Be7 {[%emt 0:01:57]} 11. f4 {[%emt 0:05:40]} Rb8 {[%emt 0:05:27]} 12. f5 {[%emt 0:11:11]} Ne5 {[%emt 0:11:11]} 13. Nf4 {[%emt 0:12:05]} Nxc4 {[%emt 0:06:12]} 14. dxc4 {[%emt 0:00:05]} Qc6 {[%emt 0:06:07]} 15. fxe6 {[%emt 0:01:32]} fxe6 {[%emt 0:01:50]} 16. Nh5 {[%emt 0:02:03]} O-O {[%emt 0:02:06]} 17. Bg5 {[%emt 0:01:39]} Qc7 {[%emt 0:14:24]} 18. Bxf6 {[%emt 0:00:50]} Bxf6 {[%emt 0:00:36]} 19. Nxf6+ {[%emt 0:00:07]} gxf6 {[%emt 0:01:46]} 20. Qd3 {[%emt 0:00:53]} Bd7 {[%emt 0:06:30]} 21. Rad1 {[%emt 0:01:32]} Bc6 {[%emt 0:02:14]} 22. Qg3+ {[%emt 0:08:43]} Kh8 {[%emt 0:03:09]} 23. Qxd6 {[%emt 0:00:46]} Qxd6 {[%emt 0:00:42]} 24. Rxd6 {[%emt 0:00:07]} Rbe8 {[%emt 0:00:41]} 25. b3 {[%emt 0:06:23]} Kg7 {[%emt 0:01:06]} 26. Kf2 {[%emt 0:02:48]} Kf7 {[%emt 0:01:08]} 27. Ke3 {[%emt 0:00:07]} Ke7 {[%emt 0:00:56]} 28. Rd2 {[%emt 0:00:17]} Rg8 {[%emt 0:01:10]} 29. g4 {[%emt 0:04:31]} Rg5 {[%emt 0:03:19]} 30. Rdf2 {[%emt 0:03:59]} Rf8 {[%emt 0:02:54]} 31. Ne2 {[%emt 0:00:47]} h5 {[%emt 0:03:40]} 32. gxh5 {[%emt 0:00:12]} Rxh5 {[%emt 0:00:16]} 33. Nf4 {[%emt 0:00:05]} Rg5 {[%emt 0:00:12]} 34. h4 {[%emt 0:01:22]} Rg4 {[%emt 0:00:36]} 35. h5 {[%emt 0:00:30]} Bxe4 {[%emt 0:01:01]} 36. Kxe4 {[%emt 0:01:18]} e5 {[%emt 0:00:04]} 37. Ke3 {[%emt 0:05:35]} exf4+ {[%emt 0:00:30]} 38. Rxf4 {[%emt 0:00:06]} Rg3+ {[%emt 0:01:28]} 39. R1f3 {[%emt 0:01:41]} Rg5 {[%emt 0:00:27]} 40. Rf5 {[%emt 0:00:00]} Rxf5 {[%emt 0:00:00]} 41. Rxf5 {[%emt 0:00:44]} Rc8 {[%emt 0:04:55]} 42. Kf4 {[%emt 0:01:11]} a5 {[%emt 0:07:14]} 43. Rd5 {[%emt 0:00:50]} Ke6 {[%emt 0:01:00]} 44. h6 {[%emt 0:00:46]} b6 {[%emt 0:03:39]} 45. h7 {[%emt 0:01:45]} Rh8 {[%emt 0:00:49]} 46. Rh5 {[%emt 0:00:07]} Kf7 {[%emt 0:02:24]} 47. Kf5 {[%emt 0:00:09]} Kg7 {[%emt 0:00:20]} 48. Rh2 {[%emt 0:00:16]} Kf7 {[%emt 0:00:13]} 49. Rd2 {[%emt 0:00:52]} Ke7 {[%emt 0:02:23]} 50. Kg6 {[%emt 0:00:30]} 1-0

[Event "79th Armenian-HL-ch Women 2024"]
[Site "Yerevan"]
[Date "2024.01.12"]
[Round "1.5"]
[White "Gevorgyan, Maria"]
[Black "Kobak, Polina"]
[Result "1-0"]
[ECO "A07"]
[WhiteElo "2272"]
[BlackElo "2120"]
[Annotator "RC"]
[PlyCount "129"]
[EventDate "2024.01.11"]
[EventType "tourn"]
[EventCountry "ARM"]
[SourceTitle "playchess.com"]
[Source "ChessBase"]
[SourceQuality "1"]
[TimeControl "40/5400+30:1800+30"]

1. Nf3 {[%emt 0:00:04]} d5 {[%emt 0:00:13]} 2. g3 {[%emt 0:00:07]} Nd7 {[%emt 0:00:39]} 3. Bg2 {[%emt 0:01:13]} e5 {[%emt 0:00:13]} 4. d3 {[%emt 0:00:29]} Ngf6 {[%emt 0:00:17]} 5. O-O {[%emt 0:00:44]} Bd6 {[%emt 0:00:11]} 6. c4 {[%emt 0:02:00]} c6 {[%emt 0:00:20]} 7. Nc3 {[%emt 0:04:59]} O-O {[%emt 0:01:32]} 8. e4 {[%emt 0:04:59]} dxc4 {[%emt 0:15:07]} 9. dxc4 {[%emt 0:00:15]} Nc5 {[%emt 0:00:51]} 10. Qc2 {[%emt 0:03:14]} Bg4 {[%emt 0:05:09]} 11. Be3 {[%emt 0:09:13]} Bxf3 {[%emt 0:13:41]} 12. Bxf3 {[%emt 0:00:18]} a5 {[%emt 0:02:07]} 13. Rad1 {[%emt 0:02:21]} Qe7 {[%emt 0:02:02]} 14. h3 {[%emt 0:04:29]} Ne6 {[%emt 0:12:07]} 15. Na4 {[%emt 0:08:03]} c5 {[%emt 0:09:11]} 16. Bg2 {[%emt 0:00:55]} Nd4 {[%emt 0:02:06]} 17. Qd2 {[%emt 0:01:59]} Nd7 {[%emt 0:04:39]} 18. f4 {[%emt 0:07:40]} Ra6 {[%emt 0:04:50]} 19. b3 {[%emt 0:05:22]} Bc7 {[%emt 0:03:34]} 20. fxe5 {[%emt 0:06:28]} Bxe5 {[%emt 0:02:17]} 21. Nxc5 {[%emt 0:03:54]} Nxc5 {[%emt 0:08:21]} 22. Bxd4 {[%emt 0:00:27]} Rg6 {[%emt 0:03:11]} 23. Bxe5 {[%emt 0:02:54]} Qxe5 {[%emt 0:09:22]} 24. Rf5 {[%emt 0:01:22]} Qe7 {[%emt 0:00:00]} 25. Qe3 {[%emt 0:00:43]} b6 {[%emt 0:00:00]} 26. e5 {[%emt 0:03:10]} Ne6 {[%emt 0:00:00]} 27. Kh2 {[%emt 0:00:59]} Rg5 {[%emt 0:00:00]} 28. Rxg5 {[%emt 0:01:29]} Qxg5 {[%emt 0:02:30]} 29. Qxg5 Nxg5 30. Rd6 Rb8 31. Bd5 Kf8 32. h4 Ne6 33. Bxe6 fxe6 34. Rxe6 Kf7 35. Rd6 b5 36. cxb5 Rxb5 37. e6+ Kf6 38. Ra6 Re5 39. Kg1 g5 40. hxg5+ Kxg5 41. Kf2 Kg4 42. e7 Rf5+ 43. Kg2 Re5 44. Rxa5 Re2+ 45. Kf1 Rxe7 46. Kf2 Rf7+ 47. Kg2 Rd7 48. Ra4+ Kg5 49. Kf3 Rd3+ 50. Kg2 h5 51. Kh3 Rd1 52. Ra5+ Kg6 53. a4 Rb1 54. Rb5 Ra1 55. a5 Ra2 56. b4 Ra1 57. Kg2 Ra3 58. Kh3 Ra1 59. Rc5 Ra4 60. Rc6+ Kf5 61. Rb6 Ra1 62. a6 Ke4 63. b5 Kf3 64. Rf6+ Ke3 {[%emt 0:45:34]} 65. Rf5 {[%emt 0:48:07]} 1-0

[Event "79th Armenian-HL-ch Women 2024"]
[Site "Yerevan"]
[Date "2024.01.13"]
[Round "2.1"]
[White "Avetisyan, Mariam"]
[Black "Kobak, Polina"]
[Result "1/2-1/2"]
[ECO "D11"]
[WhiteElo "2043"]
[BlackElo "2120"]
[Annotator "NA RC"]
[PlyCount "44"]
[EventDate "2024.01.11"]
[EventType "tourn"]
[EventCountry "ARM"]
[SourceTitle "playchess.com"]
[Source "ChessBase"]
[SourceQuality "1"]
[TimeControl "40/5400+30:1800+30"]

1. d4 {[%emt 0:00:03]} d5 {[%emt 0:00:04]} 2. Nf3 {[%emt 0:00:04]} c6 {[%emt 0:01:05]} 3. g3 {[%emt 0:01:02]} Nf6 {[%emt 0:00:12]} 4. Bg2 {[%emt 0:00:04]} Bf5 {[%emt 0:00:18]} 5. O-O {[%emt 0:01:20]} e6 {[%emt 0:01:00]} 6. c4 {[%emt 0:00:45]} Nbd7 {[%emt 0:04:12]} 7. b3 {[%emt 0:02:29]} h6 {[%emt 0:01:06]} 8. Nc3 {[%emt 0:00:42]} Be7 {[%emt 0:01:09]} 9. Bb2 {[%emt 0:16:23]} O-O {[%emt 0:03:12]} 10. Nd2 {[%emt 0:03:20]} Qa5 {[%emt 0:09:38]} 11. a3 {[%emt 0:11:51]} Rad8 {[%emt 0:07:40]} 12. b4 {[%emt 0:03:36]} Qc7 {[%emt 0:01:13]} 13. Rc1 {[%emt 0:09:36]} Qb8 {[%emt 0:02:27]} 14. f4 {[%emt 0:09:45]} a5 {[%emt 0:20:34]} 15. c5 {[%emt 0:05:18]} b6 {[%emt 0:02:07]} 16. Na4 {[%emt 0:04:54]} b5 {[%emt 0:12:32]} 17. Nc3 {[%emt 0:00:27]} Ng4 {[%emt 0:04:52]} 18. Rf3 {[%emt 0:00:59]} Ngf6 {[%emt 0:01:10]} 19. Rf1 {[%emt 0:00:58]} Ng4 {[%emt 0:01:03]} 20. Rf3 {[%emt 0:00:03]} Ngf6 {[%emt 0:00:48]} 21. Rf1 {[%emt 0:07:03]} Ng4 {[%emt 0:01:00]} 22. Rf3 {[%emt 0:03:05]} Ngf6 {[%emt 0:00:06]} 1/2-1/2

[Event "79th Armenian-HL-ch Women 2024"]
[Site "Yerevan"]
[Date "2024.01.13"]
[Round "2.2"]
[White "Harutyunyan, Meline"]
[Black "Gasparyan, Milena"]
[Result "0-1"]
[ECO "A36"]
[WhiteElo "1536"]
[BlackElo "1802"]
[Annotator "NA COMBH"]
[PlyCount "102"]
[EventDate "2024.01.11"]
[EventType "tourn"]
[EventCountry "ARM"]
[SourceTitle "playchess.com"]
[Source "ChessBase"]
[SourceQuality "1"]
[TimeControl "40/5400+30:1800+30"]

1. c4 {[%emt 0:00:04]} Nf6 {[%emt 0:00:12]} 2. Nc3 {[%emt 0:00:05]} c5 {[%emt 0:00:10]} 3. g3 {[%emt 0:00:30]} g6 {[%emt 0:00:57]} 4. Bg2 {[%emt 0:00:07]} Bg7 {[%emt 0:00:14]} 5. e4 {[%emt 0:07:14]} d6 {[%emt 0:06:55]} 6. Nge2 {[%emt 0:00:21]} Nc6 {[%emt 0:01:10]} 7. O-O {[%emt 0:00:50]} e5 {[%emt 0:01:03]} 8. d3 {[%emt 0:04:17]} O-O {[%emt 0:03:24]} 9. f4 {[%emt 0:24:07]} exf4 {[%emt 0:04:14]} 10. Bxf4 {[%emt 0:01:44]} Ng4 {[%emt 0:01:19]} 11. h3 {[%emt 0:18:31]} Nge5 {[%emt 0:00:24]} 12. a3 {[%emt 0:00:17]} a6 {[%emt 0:28:30]} 13. Rb1 {[%emt 0:06:41]} Rb8 {[%emt 0:06:47]} 14. b4 {[%emt 0:00:51]} cxb4 {[%emt 0:02:25]} 15. axb4 {[%emt 0:00:02]} b5 {[%emt 0:00:04]} 16. cxb5 {[%emt 0:00:32]} axb5 {[%emt 0:00:04]} 17. Nd5 {[%emt 0:08:37]} Be6 {[%emt 0:06:45]} 18. Nec3 {[%emt 0:00:06]} Nd4 {[%emt 0:01:15]} 19. Be3 {[%emt 0:01:12]} Nec6 {[%emt 0:01:21]} 20. Qd2 {[%emt 0:05:50]} f5 {[%emt 0:04:28]} 21. Bh6 {[%emt 0:05:40]} Qd7 {[%emt 0:03:05]} 22. Bxg7 {[%emt 0:00:08]} Qxg7 {[%emt 0:00:44]} 23. Nf4 {[%emt 0:02:26]} Bd7 {[%emt 0:02:04]} 24. Kh2 {[%emt 0:05:45]} Kh8 {[%emt 0:04:24]} 25. exf5 {[%emt 0:05:10]} Bxf5 {[%emt 0:00:43]} 26. Ne4 {[%emt 0:00:07]} Rbd8 {[%emt 0:03:00]} 27. Qb2 {[%emt 0:00:33]} Ne5 {[%emt 0:06:39]} 28. Kh1 {[%emt 0:01:00]} Ndc6 {[%emt 0:08:21]} 29. Qc3 {[%emt 0:00:40]} Ne7 {[%emt 0:00:28]} 30. Ng5 {[%emt 0:00:34]} Qg8 {[%emt 0:03:10]} 31. d4 {[%emt 0:00:39]} Rc8 {[%emt 0:00:28]} 32. Qe3 {[%emt 0:00:29]} Bxb1 {[%emt 0:00:19]} 33. dxe5 {[%emt 0:00:17]} Nf5 {[%emt 0:00:14]} 34. Qa3 {[%emt 0:00:32]} Qa2 {[%emt 0:01:15]} 35. Qxa2 {[%emt 0:00:51]} Bxa2 {[%emt 0:00:01]} 36. Kh2 {[%emt 0:00:21]} dxe5 {[%emt 0:00:08]} 37. Nfe6 {[%emt 0:00:55]} Bxe6 {[%emt 0:00:59]} 38. Nxe6 {[%emt 0:01:25]} Rfe8 39. Ng5 {[%emt 0:00:00]} h6 {[%emt 0:00:45]} 40. Ne4 {[%emt 0:00:00]} Ne3 {[%emt 0:00:00]} 41. Rf7 {[%emt 0:00:02]} Rf8 {[%emt 0:02:22]} 42. Rf3 {[%emt 0:02:03]} Nxg2 {[%emt 0:01:01]} 43. Kxg2 {[%emt 0:00:06]} Rc2+ {[%emt 0:00:31]} 44. Nf2 {[%emt 0:00:11]} Rxf3 {[%emt 0:01:38]} 45. Kxf3 {[%emt 0:00:04]} Rxf2+ {[%emt 0:00:54]} 46. Kxf2 {[%emt 0:00:04]} Kg7 {[%emt 0:00:05]} 47. Ke3 {[%emt 0:00:01]} Kf6 {[%emt 0:00:07]} 48. g4 {[%emt 0:00:20]} g5 {[%emt 0:00:04]} 49. Kd3 {[%emt 0:00:09]} Ke7 {[%emt 0:00:21]} 50. Ke3 {[%emt 0:00:19]} Kd6 {[%emt 0:00:05]} 51. Ke4 {[%emt 0:00:10]} Ke6 {[%emt 0:00:04]} 0-1

[Event "79th Armenian-HL-ch Women 2024"]
[Site "Yerevan"]
[Date "2024.01.13"]
[Round "2.3"]
[White "Khachatryan, Mariam"]
[Black "Gevorgyan, Maria"]
[Result "0-1"]
[ECO "D20"]
[WhiteElo "1567"]
[BlackElo "2272"]
[Annotator "RC"]
[PlyCount "42"]
[EventDate "2024.01.11"]
[EventType "tourn"]
[EventCountry "ARM"]
[SourceTitle "playchess.com"]
[Source "ChessBase"]
[SourceQuality "1"]
[TimeControl "40/5400+30:1800+30"]

1. d4 {[%emt 0:00:04]} d5 {[%emt 0:00:06]} 2. c4 {[%emt 0:00:05]} dxc4 {[%emt 0:00:12]} 3. e4 {[%emt 0:00:13]} e5 {[%emt 0:00:06]} 4. Nf3 {[%emt 0:00:18]} exd4 {[%emt 0:00:07]} 5. Bxc4 {[%emt 0:00:11]} Nc6 {[%emt 0:00:13]} 6. O-O {[%emt 0:01:28]} Bc5 {[%emt 0:00:09]} 7. Qb3 {[%emt 0:03:37]} Qd7 {[%emt 0:00:06]} 8. Qc2 {[%emt 0:01:30]} Bb6 {[%emt 0:06:46]} 9. a3 {[%emt 0:06:16]} Nge7 {[%emt 0:05:16]} 10. e5 {[%emt 0:08:37]} Qf5 {[%emt 0:02:29]} 11. Bd3 {[%emt 0:00:57]} Qh5 {[%emt 0:00:14]} 12. Bf4 {[%emt 0:04:45]} Bf5 {[%emt 0:12:32]} 13. b4 {[%emt 0:09:35]} Bxd3 {[%emt 0:03:51]} 14. Qxd3 {[%emt 0:00:08]} Ng6 {[%emt 0:01:53]} 15. Bg3 {[%emt 0:00:34]} O-O {[%emt 0:00:19]} 16. Re1 {[%emt 0:07:54]} Rae8 {[%emt 0:00:34]} 17. Qb5 {[%emt 0:05:52]} f5 {[%emt 0:04:47]} 18. e6 {[%emt 0:08:09]} a6 {[%emt 0:00:09]} 19. Qc4 {[%emt 0:01:23]} f4 {[%emt 0:00:19]} 20. Nbd2 {[%emt 0:02:23]} fxg3 {[%emt 0:01:33]} 21. hxg3 {[%emt 0:00:07]} Nge7 {[%emt 0:01:21]} 0-1